[Event "GER-ch Youth-U18 2022"]
[Site "Willingen"]
[Date "2022.06.08"]
[Round "5.9"]
[White "Weidemann, Jakob"]
[Black "Orf, Niklas"]
[Result "1-0"]
[ECO "B07"]
[WhiteElo "2047"]
[BlackElo "1797"]
[Annotator "TA"]
[PlyCount "53"]
[EventDate "2022.06.05"]
[EventType "swiss"]
[EventRounds "9"]
[EventCountry "GER"]
[SourceTitle "playchess.com"]
[Source "ChessBase"]
[SourceQuality "1"]
[TimeControl "40/4500+30:900+30"]

{[%evp 14,53,38,47,48,41,61,25,60,59,63,43,148,96,95,102,161,161,156,161,161,149,167,156,338,351,316,334,430,270,283,287,436,432,714,698,1381,1311,29990,29991,29991,29992]} 1. e4 {[%emt 0:00:00]} d6 {[%emt 0:00:00]} 2. d4 {[%emt 0:00:00]} Nf6 {[%emt 0:00:00]} 3. Nc3 {[%emt 0:00:00]} Nbd7 {[%emt 0:00:00]} 4. Nf3 {[%emt 0:00:00]} e5 {[%emt 0:00:00]} 5. Bc4 {[%emt 0:00:00]} Be7 {[%emt 0:00:00]} 6. O-O {[%emt 0:00:00]} c6 {[%emt 0:00:00]} 7. a4 {[%emt 0:00:00]} Qc7 {[%emt 0:00:00] Recently 7...h6 got a lot of attention.} 8. Re1 {[%emt 0:00:00]} h6 {[%emt 0:00:00] C41: Philidor Defence.} 9. a5 {[%emt 0:00:00]} Nf8 {[%emt 0:00:00]} 10. b3 {[%emt 0:00:00] [#] White is more active.} Ne6 $146 {[%emt 0:00:00] White has an edge.} ({Predecessor:} 10... Ng6 11. d5 O-O 12. h3 Rd8 13. Qd3 Nh5 14. Ne2 Rf8 15. b4 Kh7 16. a6 b5 {1-0 (78) Erdogdu,M (2407)-Koellner,R (2428) Chess.com INT 2021}) 11. d5 {[%emt 0:00:00]} Nf8 {[%emt 0:04:11]} 12. Qd3 {[%emt 0:03:24]} g5 {[%emt 0:03:29]} ({Better is} 12... Ng6 $14) 13. b4 {[%emt 0:01:27]} ({White should try} 13. Ba3) 13... Ng6 $16 {[%emt 0:04:51]} 14. g3 $36 {[%emt 0:02:10][%mdl 2048] White is on the roll.} Rg8 {[%emt 0:04:31]} (14... Kf8 $16) 15. a6 $18 {[%emt 0:07:25]} b5 {[%emt 0:13:55]} 16. Bb3 {[%emt 0:00:14] aiming for dxc6.} Bd7 {[%emt 0:00:15]} 17. dxc6 {[%emt 0:12:02]} Qxc6 {[%emt 0:00:31]} 18. Ra5 {[%emt 0:01:58]} Bd8 $2 {[%emt 0:04:01] A mistake that costs the game.} (18... Kf8 $16 {was necessary.} 19. Nxb5 Bh3) 19. Rxb5 {[%emt 0:03:42] [#] Rb7 is the strong threat.} Rc8 {[%emt 0:01:11]} 20. Bb2 {[%emt 0:05:29] And now Rb7 would win.} Qxa6 {[%emt 0:28:11]} 21. Ra1 {[%emt 0:05:42]} Rxc3 {[%emt 0:05:11]} 22. Rxe5+ $1 {[%emt 0:05:10]} Nxe5 {[%emt 0:01:42]} (22... dxe5 $142 23. Qxa6 Rxf3) 23. Qxa6 {[%emt 0:00:13]} Rxf3 {[%emt 0:00:36]} (23... Nxf3+ $142 24. Kg2 Rc6) 24. Qxd6 {[%emt 0:03:28]} Neg4 {[%emt 0:05:23]} 25. Rxa7 {[%emt 0:04:44] Intending Bxf6 and mate.} Rxf2 {[%emt 0:07:56] [#]} 26. Rxd7 $1 {[%emt 0:05:05][%mdl 512]} Nxd7 {[%emt 0:00:12]} (26... Rf1+ 27. Kxf1) 27. Ba4 {[%emt 0:00:14] Weighted Error Value: White=0.15 (very precise) /Black=0.86} 1-0

[Event "GER-ch Youth-U18 2022"]
[Site "Willingen"]
[Date "2022.06.08"]
[Round "5.10"]
[White "Geltz, Noah"]
[Black "Haack, Kevin"]
[Result "1-0"]
[ECO "B11"]
[WhiteElo "2156"]
[BlackElo "2176"]
[Annotator "TA"]
[PlyCount "105"]
[EventDate "2022.06.05"]
[EventType "swiss"]
[EventRounds "9"]
[EventCountry "GER"]
[SourceTitle "playchess.com"]
[Source "ChessBase"]
[SourceQuality "1"]
[TimeControl "40/4500+30:900+30"]

{[%evp 10,105,22,21,20,19,30,6,13,8,4,5,33,-15,8,0,0,-15,-13,-19,-21,-33,-17,-27,92,85,107,99,122,127,173,193,287,211,254,248,370,372,387,337,625,611,623,610,813,866,1008,1017,928,632,708,680,670,556,551,533,568,569,607,564,601,0,601,587,571,507,598,612,596,544,654,640,675,631,810,810,896,948,29966,29967,6622,8936,6394,6160,4134,4134,29973,29974,29977,29979,29974,29970,29981,29982,29983,29984,29983,29984]} 1. e4 {[%emt 0:00:00]} c6 {[%emt 0:00:00]} 2. Nf3 {[%emt 0:00:00]} d5 {[%emt 0:00:00]} 3. Nc3 {[%emt 0:00:00]} Bg4 {[%emt 0:00:00]} 4. h3 {[%emt 0:00:00]} Bxf3 {[%emt 0:00:00]} 5. Qxf3 {[%emt 0:00:00]} e6 {[%emt 0:00:00]} 6. Be2 {[%emt 0:00:00]} Bc5 {[%emt 0:00:00] B11: Caro-Kann: Two Knights Variation.} 7. O-O {[%emt 0:00:00]} Nd7 {[%emt 0:00:00]} 8. exd5 {[%emt 0:00:00]} cxd5 {[%emt 0:00:00] [#] The position is equal.} 9. Na4 $146 {[%emt 0:00:55]} ({Predecessor:} 9. Rd1 Ngf6 10. d4 Be7 11. Bd3 O-O 12. Ne2 Qb8 13. Nf4 b5 14. h4 Qb7 15. h5 {½-½ (64) Dragnev,V (2535)-Fridman,D (2626) Katowice 2021}) 9... Bd6 {[%emt 0:00:00]} 10. d4 {[%emt 0:01:30]} Ngf6 {[%emt 0:01:43]} 11. Nc3 {[%emt 0:06:53]} (11. c4 $14) 11... a6 {[%emt 0:04:07]} 12. Bd3 {[%emt 0:07:38]} O-O {[%emt 0:09:32]} 13. Bf4 {[%emt 0:07:42]} Qc7 {[%emt 0:08:25]} 14. Bg5 {[%emt 0:07:26]} h6 {[%emt 0:10:13]} 15. Bd2 {[%emt 0:09:10]} b5 {[%emt 0:01:14]} 16. a3 {[%emt 0:02:12][%cal Ba2a3,Ba3a4,Ba4b5][%mdl 32]} Nb6 {[%emt 0:03:21] [#]} (16... Rfe8 $11 {remains equal.}) 17. Bxh6 $1 $16 {[%emt 0:00:31] Black is now going downhill.} Nc4 {[%emt 0:07:56]} (17... Rfe8 18. Bg5) 18. Bg5 $36 {[%emt 0:03:29][%mdl 2048] White is in control.} Nh7 {[%emt 0:03:15] [#]} (18... Nxb2 $2 19. Bxf6 Bh2+ 20. Kh1 $18) 19. Bc1 {[%emt 0:03:27]} ({Don't play} 19. Bxh7+ Kxh7 20. Rfb1 f6 $14) 19... f5 {[%emt 0:01:27]} (19... Rac8 $16 20. b3 (20. Qh5 g6 $16) 20... Nb6) 20. a4 {[%emt 0:03:43]} Rab8 {[%emt 0:02:33]} (20... Qa5 $142 21. Rd1 b4) 21. Re1 {[%emt 0:07:09]} Qd7 {[%emt 0:09:53]} 22. g4 {[%emt 0:04:04]} g6 {[%emt 0:03:30]} (22... b4 {was worth a try.}) 23. gxf5 {[%emt 0:02:06]} gxf5 {[%emt 0:00:43]} 24. Kh1 {[%emt 0:01:42]} Bc7 $2 {[%emt 0:02:10]} (24... Kh8 25. axb5 axb5) 25. axb5 $18 {[%emt 0:01:34]} Qd6 {[%emt 0:01:56][%csl Gc7][%cal Rd6h2]} 26. Qg2+ {[%emt 0:00:27]} Kf7 {[%emt 0:00:50]} 27. Bxc4 {[%emt 0:01:27]} dxc4 {[%emt 0:05:20]} 28. Rxa6 {[%emt 0:00:28]} Rb6 {[%emt 0:00:11]} 29. Rxb6 {[%emt 0:00:36]} Bxb6 {[%emt 0:00:16]} 30. Rg1 {[%emt 0:04:26]} Nf6 {[%emt 0:01:28]} 31. d5 {[%emt 0:07:07] Strongly threatening Qg6+.} Rg8 {[%emt 0:03:18] Against Qg6+} 32. dxe6+ {[%emt 0:00:09]} Qxe6 {[%emt 0:01:54]} 33. Qb7+ {[%emt 0:00:40]} Ke8 {[%emt 0:01:22]} 34. Qa8+ {[%emt 0:02:42]} Kd7 {[%emt 0:02:00]} 35. Qb7+ {[%emt 0:02:04]} Ke8 {[%emt 0:00:12]} 36. Rxg8+ {[%emt 0:00:37]} Nxg8 {[%emt 0:00:11]} 37. Qa8+ {[%emt 0:01:05]} Kd7 {[%emt 0:00:57]} 38. Qd5+ {[%emt 0:00:26]} Qxd5+ {[%emt 0:00:39]} 39. Nxd5 {[%emt 0:00:05]} Bxf2 {[%emt 0:00:09][%mdl 4096] Endgame KBN-KBN} 40. Bg5 {[%emt 0:00:30]} Ke6 {[%emt 0:01:16]} 41. Kg2 {[%emt 0:00:00]} Bd4 {[%emt 0:00:00]} 42. c3 {[%emt 0:00:00]} Bg7 {[%emt 0:00:00]} 43. Ne3 {[%emt 0:00:00]} Nf6 {[%emt 0:00:00]} 44. Bxf6 {[%emt 0:00:00]} Bxf6 {[%emt 0:00:00] KB-KN} 45. Kf3 {[%emt 0:00:00]} Kd6 {[%emt 0:00:00]} 46. Nxc4+ {[%emt 0:00:00]} Kc5 {[%emt 0:00:00]} 47. Na3 {[%emt 0:00:00] Intending b4+ and mate.} Bg5 {[%emt 0:00:00]} 48. b4+ {[%emt 0:00:00] White mates.} Kb6 {[%emt 0:00:33]} 49. c4 {[%emt 0:00:00][%cal Bc3c4,Bc4c5,Bc5c6][%mdl 32]} Bd2 {[%emt 0:00:08]} 50. c5+ {[%emt 0:00:00]} Kb7 {[%emt 0:00:45]} 51. Nc4 {[%emt 0:00:00]} Bxb4 {[%emt 0:00:26]} 52. c6+ {[%emt 0:00:00]} Kc7 {[%emt 0:01:20]} 53. Kf4 {Weighted Error Value: White=0.27 (precise) /Black=0.51} 1-0

[Event "GER-ch Youth-U18 2022"]
[Site "Willingen"]
[Date "2022.06.08"]
[Round "5.11"]
[White "Bornholdt, Joa Max"]
[Black "Hassemeier, Mika"]
[Result "0-1"]
[ECO "E21"]
[WhiteElo "2155"]
[BlackElo "2127"]
[Annotator "TA"]
[PlyCount "58"]
[EventDate "2022.06.05"]
[EventType "swiss"]
[EventRounds "9"]
[EventCountry "GER"]
[SourceTitle "playchess.com"]
[Source "ChessBase"]
[SourceQuality "1"]
[TimeControl "40/4500+30:900+30"]

{[%evp 10,57,29,29,33,36,29,27,38,24,30,8,14,10,27,0,0,0,0,0,19,0,31,-29,0,0,0,0,0,0,0,0,0,-124,-109,-343,-346,-323,-324,-29990,-29991,-29996,-29997,-29997,-29997,-29997,-29998,-29998,-29999,-29999]} 1. d4 {[%emt 0:00:00]} Nf6 {[%emt 0:00:00]} 2. c4 {[%emt 0:00:00]} e6 {[%emt 0:00:00]} 3. Nf3 {[%emt 0:00:00]} b6 {[%emt 0:00:00]} 4. Nc3 {[%emt 0:00:00]} Bb4 {[%emt 0:00:00]} 5. Qb3 {[%emt 0:00:00]} Bxc3+ {[%emt 0:00:00]} 6. Qxc3 {[%emt 0:00:00]} Ne4 {[%emt 0:00:00] E21: Nimzo-Indian: 4 Nf3.} 7. Qc2 {[%emt 0:00:00]} Bb7 {[%emt 0:00:00]} 8. g3 {[%emt 0:00:00]} O-O {[%emt 0:00:00] White has an edge.} 9. Bg2 {[%emt 0:00:00][%cal Of3g5]} d5 {[%emt 0:04:23] [#]} 10. cxd5 $146 {[%emt 0:00:00]} ({Predecessor:} 10. O-O Nd7 11. Bf4 Rc8 12. Ne5 Nxe5 13. dxe5 a5 14. Rad1 Qe7 15. h4 h6 16. Kh2 {1-0 (32) Edouard,R (2635)-Barbotte,J (1629) Poitiers 2019}) 10... exd5 {[%emt 0:00:53]} 11. Bf4 {[%emt 0:00:00]} c5 {[%emt 0:09:20]} 12. O-O {[%emt 0:00:00]} Nc6 {[%emt 0:04:33]} 13. dxc5 {[%emt 0:05:01]} bxc5 {[%emt 0:00:58]} 14. Rac1 {[%emt 0:05:13]} Qe7 {[%emt 0:02:25]} 15. Rfe1 {[%emt 0:16:15]} Rfe8 {[%emt 0:11:36]} 16. Rcd1 {[%emt 0:17:35]} (16. Qa4 $14) 16... Rad8 {[%emt 0:09:22]} 17. Qc1 {[%emt 0:04:05]} h6 {[%emt 0:06:51]} 18. Nd2 {[%emt 0:04:46]} Nxd2 {[%emt 0:11:29]} 19. Bxd2 {[%emt 0:00:05]} Ne5 {[%emt 0:02:32][%cal Bc6e5,Be5g4,Bg4e3][%mdl 32]} 20. Ba5 {[%emt 0:04:15] A strong pair of Bishops.} Rd7 {[%emt 0:08:01]} 21. Bh3 {[%emt 0:03:27]} (21. e3 $11) 21... d4 $17 {[%emt 0:00:47]} 22. Bxd7 $2 {[%emt 0:05:54] This costs White the game.} (22. f3 $17 {keeps fighting.}) 22... Qxd7 $19 {[%emt 0:00:17]} 23. f3 {[%emt 0:12:11] [#]} Qh3 $1 {[%emt 0:01:44][%cal Oe5g4] ( -> ...Ng4!)} 24. Qxc5 $2 {[%emt 0:01:18] [#]} (24. Qc2 $19 Bxf3 25. exf3 Nxf3+ 26. Kh1 Rxe1+ 27. Rxe1 Nxe1 28. Qe2) 24... Ng4 $1 {[%emt 0:01:12][%mdl 512] Black mates.} 25. Qxd4 {[%emt 0:00:07]} (25. Qh5 Qxh5) 25... Qxh2+ {[%emt 0:00:10]} 26. Kf1 {[%emt 0:00:01]} Qh1+ {[%emt 0:00:20]} 27. Qg1 {[%emt 0:00:07]} Qh3+ {[%emt 0:00:07]} 28. Qg2 {[%emt 0:00:04]} Ne3+ {[%emt 0:00:05][%mdl 64] Pin, Double Attack} 29. Kg1 {[%emt 0:00:03]} Qxg2# {[%emt 0:00:07] Weighted Error Value: White=0.53/Black=0.06 (flawless)} 0-1

[Event "GER-ch Youth-U18 2022"]
[Site "Willingen"]
[Date "2022.06.08"]
[Round "5.12"]
[White "Dietlmeier, Tobias"]
[Black "Mankel, Luca"]
[Result "1-0"]
[ECO "B23"]
[WhiteElo "1886"]
[BlackElo "2010"]
[Annotator "TA"]
[PlyCount "62"]
[EventDate "2022.06.05"]
[EventType "swiss"]
[EventRounds "9"]
[EventCountry "GER"]
[SourceTitle "playchess.com"]
[Source "ChessBase"]
[SourceQuality "1"]
[TimeControl "40/4500+30:900+30"]

{[%evp 9,62,-29,2,-10,-9,-12,-2,-12,-8,-16,-8,-17,13,-18,19,-17,51,71,64,-93,-51,-97,-87,-98,-24,-26,-20,-87,-72,-74,0,0,0,3,84,0,10,0,0,0,0,-88,-117,-250,-17,-15,-22,-31,19,31,63,69,60,0,908]} 1. e4 {[%emt 0:00:00]} c5 {[%emt 0:00:00]} 2. Nc3 {[%emt 0:00:00]} a6 {[%emt 0:00:00]} 3. Bc4 {[%emt 0:00:00]} e6 {[%emt 0:00:00]} 4. d3 {[%emt 0:00:00]} Nc6 {[%emt 0:00:00]} 5. a3 {[%emt 0:00:00]} Nge7 {[%emt 0:00:00]} 6. f4 {[%emt 0:00:00] B20: Sicilian: Unusual White 2nd moves.} g6 {[%emt 0:00:00]} 7. Nf3 {[%emt 0:00:00]} Bg7 {[%emt 0:00:00]} 8. O-O {[%emt 0:00:00]} O-O {[%emt 0:00:00]} 9. Ne2 {[%emt 0:03:40]} d5 {[%emt 0:00:00]} 10. Ba2 {[%emt 0:00:50]} b5 {[%emt 0:00:00]} 11. Qe1 {[%emt 0:02:37]} Bb7 {[%emt 0:04:56] [#]} 12. Qh4 $146 {[%emt 0:02:58]} ({Predecessor:} 12. e5 Nf5 13. g4 Nfe7 14. Qh4 f6 15. c4 bxc4 16. dxc4 d4 17. Bd2 a5 18. Rf2 {0-1 (38) Turcu,D (1189)-Serra Canaves,A (1806) Pollenca 2018}) 12... Nd4 {[%emt 0:01:53]} (12... Rc8 $11) 13. Nexd4 $14 {[%emt 0:02:21]} cxd4 {[%emt 0:00:01]} (13... Bxd4+ $2 14. Nxd4 cxd4 15. f5 dxe4 16. fxe6 $18) 14. g4 $2 {[%emt 0:12:21]} (14. Ng5 $2 h6 15. Nh3 dxe4 16. dxe4 Bxe4 $19) (14. e5 $1 $14 {stays ahead.}) 14... dxe4 $17 {[%emt 0:15:32]} 15. Ng5 {[%emt 0:05:33] [#]} (15. dxe4 $15 {is superior.} Nc6 16. Qf2) 15... h6 $1 $36 {[%emt 0:00:05][%mdl 2048] Black is in control.} 16. Nxe4 {[%emt 0:00:13][%cal Of4f5]} Nd5 {[%emt 0:00:25]} ({Better is} 16... Rc8 $17 17. Rf2 Qd7) 17. Qxd8 $11 {[%emt 0:03:36]} Raxd8 {[%emt 0:02:31]} 18. f5 {[%emt 0:01:15]} (18. Nc5 $11 Bc8 19. Re1) 18... exf5 $17 {[%emt 0:07:23]} 19. gxf5 {[%emt 0:01:26]} Kh7 {[%emt 0:00:24]} (19... gxf5 $17 20. Nc5 Bc8 21. Bxd5 Rxd5) 20. f6 $11 {[%emt 0:05:14]} Bh8 {[%emt 0:00:05]} 21. Bd2 {[%emt 0:03:18]} Bc8 {[%emt 0:01:45]} (21... g5 $11) 22. Rae1 {[%emt 0:06:36] White is more active.} (22. Ba5 $16) 22... Bf5 {[%emt 0:02:01]} 23. Ba5 {[%emt 0:06:57]} Rd7 {[%emt 0:03:08]} 24. Nc5 {[%emt 0:01:57][%csl LRa6,LRd7]} Rd6 {[%emt 0:00:29]} 25. Bxd5 {[%emt 0:01:26]} (25. Nb7 $11 Rd7 26. Nc5) 25... Rxd5 $17 {[%emt 0:00:11]} 26. Nxa6 {[%emt 0:03:35] [#]} (26. Ne4 $17) 26... Bxf6 $2 {[%emt 0:03:00]} (26... Bh3 $1 $19 {White must now prevent ...Rg5+.} 27. Bd2 Bxf1 28. Rxf1 Rc8) 27. Nc7 $11 {[%emt 0:04:04]} Rd7 {[%emt 0:04:04] ...Rc8 is the strong threat.} 28. Nxb5 {[%emt 0:03:59]} Rb8 {[%emt 0:01:00]} ({Black should play} 28... Rc8 $15 29. c4 dxc3 30. Bxc3 Bh4) 29. a4 {[%emt 0:00:59]} Ra8 {[%emt 0:00:04]} 30. b4 {[%emt 0:00:25]} Bg5 {[%emt 0:00:35]} 31. Re5 {[%emt 0:03:47]} (31. Kg2 $14) 31... Rc7 $2 {[%mdl 8192] White used his chance.  Weighted Error Value: White=0.38/Black=0.36} 1-0

[Event "GER-ch Youth-U18 2022"]
[Site "Willingen"]
[Date "2022.06.08"]
[Round "5.13"]
[White "Wehrle, Maximilian"]
[Black "Chen, Qingzhi Alexander"]
[Result "0-1"]
[ECO "B51"]
[WhiteElo "1786"]
[BlackElo "1879"]
[Annotator "NA RC COMBH"]
[PlyCount "62"]
[EventDate "2022.06.05"]
[EventType "swiss"]
[EventRounds "9"]
[EventCountry "GER"]
[SourceTitle "playchess.com"]
[Source "ChessBase"]
[SourceQuality "1"]
[TimeControl "40/4500+30:900+30"]

1. e4 {[%emt 0:00:00]} c5 {[%emt 0:00:00]} 2. Nf3 {[%emt 0:00:00]} d6 {[%emt 0:00:00]} 3. Bb5+ {[%emt 0:00:00]} Nd7 {[%emt 0:00:00]} 4. d4 {[%emt 0:00:00]} cxd4 {[%emt 0:00:00]} 5. Nxd4 {[%emt 0:00:00]} Ngf6 {[%emt 0:00:00]} 6. O-O {[%emt 0:00:00]} e6 {[%emt 0:00:00]} 7. c4 {[%emt 0:00:00]} Nxe4 {[%emt 0:00:00]} 8. Re1 {[%emt 0:00:00]} Nef6 {[%emt 0:00:00]} 9. Rxe6+ {[%emt 0:00:00]} fxe6 {[%emt 0:00:19]} 10. Nxe6 {[%emt 0:00:00]} Qe7 {[%emt 0:02:42]} 11. Nc7+ {[%emt 0:00:00]} Kf7 {[%emt 0:01:24]} 12. Nxa8 {[%emt 0:00:00]} Nc5 {[%emt 0:01:11]} 13. b4 {[%emt 0:07:24]} Qe5 {[%emt 0:01:31]} 14. Nc3 {[%emt 0:03:12]} Qxc3 {[%emt 0:10:35]} 15. Bd2 {[%emt 0:00:15]} Qe5 {[%emt 0:00:32]} 16. bxc5 {[%emt 0:00:17]} dxc5 {[%emt 0:00:07]} 17. g3 {[%emt 0:24:07]} Qb8 {[%emt 0:07:34]} 18. Bf4 {[%emt 0:00:07]} Qxa8 {[%emt 0:05:58]} 19. Qd8 {[%emt 0:00:06]} a6 {[%emt 0:14:25]} 20. Ba4 {[%emt 0:00:12]} b5 $1 {[%emt 0:02:25]} 21. cxb5 {[%emt 0:01:13]} axb5 {[%emt 0:06:00]} 22. Bxb5 {[%emt 0:00:30]} Qb7 {[%emt 0:02:59]} 23. Rb1 {[%emt 0:04:36]} (23. Bc4+ $17 {was called for.} Be6 24. Bxe6+ Kxe6 25. Be5) 23... Qe4 {[%emt 0:06:59]} 24. Bd3 {[%emt 0:13:58]} Be7 {[%emt 0:02:46]} 25. Qxh8 {[%emt 0:01:34]} Qxd3 {[%emt 0:00:11]} 26. Re1 {[%emt 0:01:36]} Bh3 {[%emt 0:03:55]} 27. Qa8 {[%emt 0:01:17]} Be6 {[%emt 0:03:20]} 28. a4 $19 {[%emt 0:02:31]} Bd5 {[%emt 0:01:24]} 29. Qa7 {[%emt 0:00:05]} Be6 {[%emt 0:04:14]} 30. Qb6 {[%emt 0:01:17]} Qd5 {[%emt 0:00:23]} 31. Qa7 {[%emt 0:05:33]} Nd7 {[%emt 0:00:56]} 0-1

[Event "GER-ch Youth-U18 2022"]
[Site "Willingen"]
[Date "2022.06.08"]
[Round "6.1"]
[White "Dahl, Christoph"]
[Black "Fromm, Marius"]
[Result "1/2-1/2"]
[ECO "C28"]
[WhiteElo "2368"]
[BlackElo "2317"]
[Annotator "TA"]
[PlyCount "55"]
[EventDate "2022.06.05"]
[EventType "swiss"]
[EventRounds "9"]
[EventCountry "GER"]
[SourceTitle "playchess.com"]
[Source "ChessBase"]
[SourceQuality "1"]
[TimeControl "40/4500+30:900+30"]

{[%evp 9,55,0,0,0,0,-14,-13,-14,-11,-7,0,-10,0,-1,0,-7,-10,-20,-20,-20,-29,-28,-22,-26,-41,-53,-14,-14,-14,-62,-62,-59,-54,-75,-49,-53,-57,-61,-60,-71,-60,-65,-59,-60,-63,-67,-64,-75]} 1. e4 {[%emt 0:00:00]} e5 {[%emt 0:00:00]} 2. Nc3 {[%emt 0:00:00]} Nf6 {[%emt 0:00:00]} 3. Bc4 {[%emt 0:00:00]} Nc6 {[%emt 0:00:00]} 4. Nge2 {[%emt 0:00:00]} Bc5 {[%emt 0:00:00]} 5. O-O {[%emt 0:00:00]} O-O {[%emt 0:00:00]} 6. d3 {[%emt 0:00:00] C28: Vienna Game: 2...Nf6 3 Bc4 Nc6.} Na5 {[%emt 0:00:00]} 7. a3 {[%emt 0:00:00] 7.a4 gains popularity.} Nxc4 {[%emt 0:00:00]} 8. dxc4 {[%emt 0:00:00] The position is equal.} d6 {[%emt 0:00:00]} 9. Qd3 {[%emt 0:00:00]} a5 {[%emt 0:00:00][%cal Ba7a5,Ba5a4][%mdl 32] [#]} 10. Be3 $146 {[%emt 0:00:00]} ({Predecessor:} 10. Kh1 Ng4 11. Qg3 f5 12. f4 fxe4 13. Nxe4 Ba7 14. Bd2 Bf5 15. N2c3 Qe8 16. h3 Bxe4 17. Qxg4 Bxc2 {0-1 (45) Guner,S (2105)-Ertan,C (2201) Konya 2011}) 10... Bxe3 {[%emt 0:00:00]} 11. Qxe3 {[%emt 0:03:24]} Be6 {[%emt 0:11:24]} 12. b3 {[%emt 0:03:20]} a4 {[%emt 0:02:33]} 13. f4 {[%emt 0:05:36]} exf4 {[%emt 0:02:28]} 14. Nxf4 {[%emt 0:02:14]} Re8 {[%emt 0:01:43]} 15. Qd4 {[%emt 0:05:25]} axb3 {[%emt 0:01:03]} 16. cxb3 {[%emt 0:00:05]} Nd7 {[%emt 0:08:04]} 17. Nd3 {[%emt 0:06:49] Inhibits Nc5.} Ne5 {[%emt 0:04:53]} 18. Nxe5 {[%emt 0:03:52]} dxe5 {[%emt 0:00:04]} 19. Qe3 {[%emt 0:00:21]} (19. Qxd8 $11 Raxd8 20. a4) 19... Qe7 $15 {[%emt 0:03:29]} ({Don't play} 19... Qd4 20. Qxd4 exd4 21. Nb5 $11) 20. a4 {[%emt 0:00:50]} c6 {[%emt 0:00:38] Prevents Nd5.} 21. Ne2 {[%emt 0:03:19][%cal Bc3e2,Be2g3,Bg3f5][%mdl 32]} Qb4 {[%emt 0:05:18]} 22. Ng3 {[%emt 0:04:47]} f6 {[%emt 0:10:39]} 23. Nf5 {[%emt 0:04:28]} Rad8 {[%emt 0:01:05]} 24. Rad1 {[%emt 0:01:08]} g6 {[%emt 0:10:22]} 25. Rxd8 {[%emt 0:05:01] Black is slightly better.} Rxd8 {[%emt 0:00:05]} 26. Ng3 {[%emt 0:00:05]} Kg7 {[%emt 0:00:46]} 27. Qf3 {[%emt 0:04:50]} Qe7 {[%emt 0:00:09]} 28. h3 {[%emt 0:02:42] Weighted Error Value: White=0.08 (flawless) /Black=0.04 (flawless)} 1/2-1/2